bitfinex-derivatives/quotes_SOLF0:USTF0_20251208
["timestamp","ask_amount","ask_price","bid_price","bid_amount"]
[1765208580698,0.05189352,135.44,135.41,3.03]
[1765208581104,2.25,135.52,135.43,3.03]
[1765208581309,8.8923,135.5,135.43,3.03]
[1765208581610,8.8923,135.5,135.44,3.03]
[1765208581611,2.25,135.5,135.44,3.03]
[1765208582009,2.25,135.5,135.45,3.03]
[1765208582213,2.30247922,135.49,135.46,0.04695091]
[1765208582604,8.94527922,135.49,135.46,0.04695091]
[1765208582905,2.25,135.48,135.46,0.04695091]
[1765208583109,2.25,135.46,135.4,6.73212009]
[1765208583711,8.8943,135.46,135.41,6.6464]
[1765208584017,62.8,135.47,135.42,3.03]
[1765208584214,2.2995851,135.46,135.42,3.03]
[1765208584404,2.25,135.45,135.4,3.70212009]
[1765208584609,2.25,135.44,135.4,3.70212009]
[1765208585019,2.25,135.41,135.4,3.70212009]
[1765208585218,2.25,135.41,135.32,3.03]
[1765208585427,0.05099884,135.38,135.32,3.03]
[1765208585713,2.30099884,135.38,135.31,3.03]
[1765208586205,62.8,135.37,135.31,3.03]
[1765208586605,2.25,135.36,135.29,3.03]
[1765208586806,0.05327986,135.34,135.29,3.03]
[1765208587418,0.05327986,135.34,135.3,3.03]
[1765208587915,0.05327986,135.34,135.31,3.03]
[1765208588112,0.05327986,135.34,135.31,106.4951]
[1765208588314,0.05327986,135.34,135.32,3.03]
[1765208588614,62.8,135.39,135.35,3.03]
[1765208589011,62.8,135.39,135.37,3.03]
[1765208589517,62.85352873,135.39,135.37,3.07968754]
[1765208589812,0.05352873,135.39,135.37,9.72788754]
[1765208590017,0.05352873,135.39,135.38,3.03]
[1765208590811,62.8,135.43,135.4,3.03]
[1765208591207,62.8,135.43,135.39,6.6474]
[1765208591411,2.25,135.4,135.34,3.03]
[1765208591605,2.25,135.4,135.31,3.03]
[1765208591814,0.05272221,135.37,135.34,0.04966556]
[1765208592620,2.30272221,135.37,135.34,0.04966556]
[1765208593616,2.25,135.36,135.34,0.04966556]
[1765208594006,6.6498,135.35,135.28,3.03]
[1765208594210,105.7057,135.33,135.24,3.03]
[1765208594409,103.4457,135.34,135.24,3.03]
[1765208594410,65.07,135.32,135.24,3.03]
[1765208595020,0.04804175,135.29,135.27,3.0835072]
[1765208595322,0.04804175,135.29,135.27,0.0535072]
[1765208595521,2.29804175,135.29,135.27,0.0535072]
[1765208596016,2.29804175,135.29,135.27,3.0835072]
[1765208596017,0.04804175,135.29,135.27,3.0835072]
[1765208597620,0.04804175,135.29,135.27,9.7366072]
[1765208597915,62.82,135.33,135.28,3.03]
[1765208598115,22.51100649,135.4,135.33,3.28]
[1765208598420,2.25,135.4,135.33,3.28]
[1765208598718,105.666,135.38,135.29,9.9321]
[1765208598919,0.05670647,135.35,135.33,3.28]
[1765208599128,2.30670647,135.35,135.32,0.05400075]
[1765208599511,0.05670647,135.35,135.32,0.05400075]
[1765208599918,0.05670647,135.35,135.32,3.33400075]
[1765208600124,2.30670647,135.35,135.32,0.05400075]
[1765208600714,0.05670647,135.35,135.32,0.05400075]
[1765208601010,0.05670647,135.35,135.32,3.33400075]
[1765208602326,0.05670647,135.35,135.34,3.28]
[1765208603010,0.05670647,135.35,135.32,3.33400075]
[1765208603217,2.30670647,135.35,135.32,0.05400075]
[1765208604224,0.05670647,135.35,135.32,3.33400075]
[1765208604625,0.05670647,135.35,135.32,0.05400075]
[1765208604626,2.30670647,135.35,135.32,0.05400075]
[1765208605019,2.25,135.33,135.32,0.05400075]
[1765208605924,2.25,135.33,135.27,6.6532]
[1765208606638,6.651,135.32,135.26,3.28]
[1765208607030,0.05021711,135.3,135.28,0.05069328]
[1765208607524,5.19215355,135.35,135.28,3.33069328]
[1765208607727,2.25,135.36,135.3,3.28]
[1765208608324,0.04980484,135.34,135.3,3.28]
[1765208608526,0.04980484,135.34,135.32,0.04719139]
[1765208608919,2.29980484,135.34,135.32,0.04719139]
[1765208609424,65.09,135.33,135.32,0.04719139]
[1765208610024,62.84,135.33,135.32,0.04719139]
[1765208611227,65.09,135.33,135.32,0.04719139]
[1765208611429,62.84,135.33,135.32,3.32719139]
[1765208611630,12.25251652,135.4,135.32,3.32719139]
[1765208611926,65.09,135.4,135.32,3.32719139]
[1765208612331,62.84,135.4,135.34,3.28]
[1765208612633,62.84,135.4,135.35,3.28]
[1765208612827,0.05078813,135.38,135.37,9.9284]
[1765208613127,62.84,135.4,135.37,3.28]
[1765208613329,62.84,135.4,135.38,3.28]
[1765208613529,9.7954,135.44,135.39,9.9275]
[1765208613725,3.15,135.44,135.39,9.9275]
[1765208613926,62.84,135.45,135.4,3.28]
[1765208614124,65.99,135.45,135.41,6.6464]
[1765208614330,0.0539757,135.44,135.41,3.33169622]
[1765208614929,0.0539757,135.44,135.43,3.28]
[1765208615429,9.7685224,135.51,135.43,3.28]
[1765208615622,3.15,135.51,135.44,9.9249]
[1765208616531,0.05177844,135.49,135.46,0.05367894]
[1765208617120,0.05177844,135.49,135.46,3.33367894]
[1765208617725,0.05177844,135.49,135.48,3.28]
[1765208618437,6.6185224,135.58,135.5,3.28]
[1765208618738,171.26225355,135.6,135.5,3.28]
[1765208618922,174.41225355,135.6,135.5,3.28]
[1765208619335,106.4062,135.59,135.52,3.28]
[1765208619534,3.20046702,135.56,135.54,0.04795051]
[1765208620438,3.20046702,135.56,135.48,3.28]
[1765208620439,9.7904,135.54,135.48,3.28]
[1765208620640,3.15,135.53,135.44,66.1]
[1765208620840,3.15,135.53,135.45,3.28]
[1765208621134,9.791,135.53,135.45,9.9243]
[1765208621331,0.04898025,135.5,135.48,3.33226485]
[1765208621732,3.15,135.56,135.49,3.28]
[1765208622039,3.15,135.53,135.45,3.28]
[1765208622336,6.6417,135.51,135.45,3.28]
[1765208622842,0.05168129,135.49,135.47,0.05021489]
[1765208623228,3.20168129,135.49,135.47,0.05021489]
[1765208625441,9.84458129,135.49,135.47,0.05021489]
[1765208625635,3.20168129,135.49,135.47,0.05021489]
[1765208626243,0.05168129,135.49,135.47,0.05021489]
[1765208627840,3.20168129,135.49,135.47,0.05021489]
[1765208628441,0.05168129,135.49,135.47,0.05021489]
[1765208628938,0.05168129,135.49,135.47,3.28021489]
[1765208629531,3.22,135.59,135.5,103.3223]
[1765208629846,3.22,135.59,135.51,3.23]
[1765208629847,106.4778,135.59,135.51,3.23]
[1765208630045,6.6409,135.53,135.47,3.23]
[1765208630347,169.312,135.52,135.43,3.23]
[1765208630642,0.04906843,135.49,135.46,0.0507993]
[1765208631441,3.26906843,135.49,135.46,0.0507993]
[1765208631747,3.22,135.48,135.46,0.0507993]
[1765208632246,66.0,135.48,135.46,0.0507993]
[1765208632946,72.6435,135.48,135.46,0.0507993]
[1765208634250,3.22,135.47,135.46,0.0507993]
[1765208634449,6.6447,135.45,135.39,9.8772]
[1765208635336,0.0558178,135.43,135.4,3.23]
[1765208635540,0.0558178,135.43,135.42,3.23]
[1765208637749,0.0558178,135.43,135.42,4.71]
[1765208639450,62.78,135.48,135.44,3.28]
[1765208640451,0.05151534,135.47,135.45,3.33613335]
[1765208640656,0.05151534,135.47,135.45,0.05613335]
[1765208640657,3.21151534,135.47,135.45,0.05613335]
[1765208641349,0.05151534,135.47,135.45,0.05613335]
[1765208642151,9.85541534,135.47,135.45,0.05613335]
[1765208642655,6.6462,135.42,135.38,3.28]
[1765208642847,6.6462,135.42,135.34,107.91083725]
[1765208642848,9.8062,135.42,135.36,6.6487]
[1765208643360,3.16,135.4,135.32,3.28]
[1765208643743,0.05611907,135.37,135.35,0.05456338]
[1765208644054,3.21611907,135.37,135.35,0.05456338]
[1765208644454,0.05611907,135.37,135.35,0.05456338]
[1765208645151,0.05611907,135.37,135.35,9.98376338]
[1765208645349,0.05611907,135.37,135.36,3.28]
[1765208646153,9.806,135.43,135.38,9.928]
[1765208646154,3.16,135.43,135.38,9.928]
[1765208646658,69.4452,135.44,135.39,9.9274]
[1765208647264,0.05307905,135.43,135.4,0.05567257]
[1765208648453,3.16,135.42,135.4,0.05567257]
[1765208648647,3.16,135.41,135.34,3.28]
[1765208649262,9.8077,135.39,135.34,9.9299]
[1765208649658,0.05565031,135.38,135.35,3.32936626]
[1765208650258,0.05565031,135.38,135.35,9.97876626]
[1765208650759,0.05565031,135.38,135.35,3.32936626]
[1765208650954,3.21565031,135.38,135.35,0.04936626]
[1765208652658,0.05565031,135.38,135.35,3.32936626]
[1765208653059,0.05565031,135.38,135.37,3.28]
[1765208653764,3.21565031,135.38,135.35,0.04936626]
[1765208657860,66.03565031,135.38,135.35,0.04936626]
[1765208658260,72.68385031,135.38,135.35,0.04936626]
[1765208658865,3.01,135.37,135.35,0.04936626]
[1765208659064,9.6586,135.37,135.35,0.04936626]
[1765208659367,3.01,135.35,135.22,3.09]
[1765208659668,3.01,135.31,135.24,3.09]
[1765208660164,65.83,135.31,135.25,3.09]
[1765208660371,0.05420841,135.29,135.26,3.14060011]
[1765208660865,62.82,135.35,135.29,3.09]
[1765208661164,62.82,135.36,135.29,3.09]
[1765208661467,62.82,135.36,135.29,9.7421]
[1765208662060,0.05079986,135.34,135.31,3.13822899]
[1765208664055,0.05079986,135.34,135.31,0.04822899]
[1765208664664,0.05079986,135.34,135.31,3.13822899]
[1765208665064,0.05079986,135.34,135.32,3.09]
[1765208665468,0.05079986,135.34,135.33,3.09]
[1765208665662,62.84,135.39,135.33,3.09]
[1765208665966,3.01,135.43,135.36,3.09]
[1765208666161,3.01,135.43,135.37,3.09]
[1765208666375,62.84,135.44,135.37,3.09]
[1765208666781,0.05128669,135.42,135.39,3.14322563]
[1765208666967,3.06128669,135.42,135.39,0.05322563]
[1765208667676,0.05128669,135.42,135.39,0.05322563]
[1765208668070,0.05128669,135.42,135.39,3.14322563]
[1765208668471,0.05128669,135.42,135.39,9.79042563]
[1765208668666,0.05128669,135.42,135.4,3.09]
[1765208669278,0.05128669,135.42,135.39,3.14322563]
[1765208670776,3.06128669,135.42,135.39,0.05322563]
[1765208670983,0.05128669,135.42,135.39,3.14322563]
[1765208671484,5.26251846,135.5,135.43,3.09]
[1765208671684,3.01,135.51,135.43,3.09]
[1765208672288,9.6519,135.51,135.43,9.7352]
[1765208672484,0.05278849,135.48,135.46,0.05199758]
[1765208672883,0.05278849,135.48,135.46,3.14199758]
[1765208673088,0.05278849,135.48,135.47,3.09]
[1765208673286,0.05278849,135.48,135.46,0.05199758]
[1765208673589,0.05278849,135.48,135.46,3.14199758]
[1765208673883,0.05278849,135.48,135.47,3.09]
[1765208674694,0.00278849,135.48,135.47,3.09]
[1765208674998,0.00278849,135.48,135.47,4.57]
[1765208675299,62.82,135.52,135.49,3.09]
[1765208675899,62.82,135.52,135.5,3.09]
[1765208676088,62.8,135.57,135.5,106.41]
[1765208676290,62.8,135.57,135.45,62.82]
[1765208676291,3.01,135.53,135.44,3.09]
[1765208676490,3.01,135.5,135.41,3.09]
[1765208676701,3.01,135.48,135.41,3.09]
[1765208676901,9.6538,135.47,135.41,3.09]
[1765208677597,0.05051455,135.45,135.43,0.05447032]
[1765208678497,0.05051455,135.45,135.43,3.14447032]
[1765208679085,62.8,135.5,135.44,6.6447]
[1765208679898,62.8,135.5,135.45,3.09]
[1765208680095,3.06365494,135.49,135.46,0.05659695]
[1765208680290,0.05365494,135.49,135.46,3.14659695]
[1765208680891,3.06365494,135.49,135.46,0.05659695]
[1765208681494,3.01,135.47,135.39,106.4926]
[1765208681891,8.27251846,135.5,135.42,3.09]
[1765208682101,9.6525,135.5,135.42,3.09]
[1765208682396,3.01,135.48,135.4,103.3939]
[1765208682594,0.05680248,135.45,135.43,0.05221374]
[1765208684296,0.05680248,135.45,135.43,3.14221374]
[1765208684988,0.05680248,135.45,135.43,9.78761374]
[1765208685397,0.05680248,135.45,135.43,3.14221374]
[1765208685700,0.05680248,135.45,135.43,0.05221374]
[1765208686001,0.05680248,135.45,135.43,3.14221374]
[1765208686198,0.05680248,135.45,135.43,0.05221374]
[1765208687499,0.05680248,135.45,135.43,3.14221374]
[1765208688405,0.05680248,135.45,135.43,9.78741374]
[1765208689100,0.05680248,135.45,135.44,3.15]
[1765208689507,0.05680248,135.45,135.43,6.69741374]
[1765208690706,0.05680248,135.45,135.43,0.05221374]
[1765208691005,3.06680248,135.45,135.43,0.05221374]
[1765208692816,0.05680248,135.45,135.43,0.05221374]
[1765208693311,0.05680248,135.45,135.43,3.20221374]
[1765208694109,0.05680248,135.45,135.43,9.84771374]
[1765208694302,0.05680248,135.45,135.44,3.15]
[1765208694901,0.05680248,135.45,135.43,6.69771374]
[1765208696815,3.06680248,135.45,135.43,0.05221374]
[1765208697515,3.06680248,135.45,135.36,106.5778]
[1765208697718,3.01,135.45,135.36,106.5778]
[1765208698311,9.6549,135.45,135.39,6.6474]
[1765208698611,3.01,135.42,135.41,0.04812274]
[1765208699212,3.01,135.41,135.35,6.6492]
[1765208700102,0.05574956,135.39,135.37,0.05353255]
[1765208700307,3.34574956,135.39,135.37,0.05353255]
[1765208700715,6.6482,135.38,135.31,9.6712]
[1765208700918,6.6482,135.38,135.27,106.5175]
[1765208700919,3.29,135.36,135.27,106.5175]
[1765208701124,3.29,135.36,135.28,106.5087]
[1765208701317,3.29,135.35,135.29,6.6523]
[1765208701516,3.29,135.35,135.26,103.5028]
[1765208701710,3.29,135.35,135.27,3.02]
[1765208701911,0.05373642,135.32,135.31,3.02]
[1765208702610,103.403,135.4,135.31,3.02]
[1765208702611,5.31872679,135.42,135.35,3.02]
[1765208702919,3.29,135.43,135.35,3.02]
[1765208703123,3.29,135.43,135.37,6.6482]
[1765208703419,3.29,135.47,135.38,3.02]
[1765208703621,0.05675139,135.44,135.41,0.05406731]
[1765208704818,0.05675139,135.44,135.41,3.07406731]
[1765208706325,0.05675139,135.44,135.43,3.02]
[1765208706623,62.8,135.51,135.43,3.02]
[1765208707015,6.6424,135.5,135.43,3.02]
[1765208707222,9.9324,135.5,135.43,3.02]
[1765208707613,0.05045573,135.48,135.45,3.0762398]
[1765208708324,6.6522613,135.55,135.47,3.02]
[1765208708617,3.29,135.56,135.47,3.02]
[1765208708822,3.29,135.54,135.47,3.02]
[1765208709216,9.9305,135.54,135.47,9.6634]
[1765208709420,0.04750098,135.52,135.49,3.07563378]
[1765208709620,3.33750098,135.52,135.49,0.05563378]
[1765208709819,0.04750098,135.52,135.49,0.05563378]
[1765208710631,3.33750098,135.52,135.49,0.05563378]
[1765208710834,9.9326,135.5,135.42,3.02]
[1765208711025,3.29,135.49,135.42,3.02]
[1765208711327,9.9329,135.49,135.42,3.02]
[1765208711825,3.34541118,135.47,135.44,0.04726032]
[1765208712015,0.05541118,135.47,135.44,0.04726032]
[1765208712209,0.05541118,135.47,135.44,3.06726032]
[1765208713128,3.29,135.52,135.45,3.02]
[1765208713516,9.9314,135.52,135.46,6.6439]
[1765208713715,62.8,135.53,135.46,3.02]
[1765208713918,66.09,135.53,135.46,3.02]
[1765208714118,0.04873289,135.51,135.48,0.04687513]
[1765208714426,0.04873289,135.51,135.48,3.06687513]
[1765208715132,0.04873289,135.51,135.5,3.02]
[1765208715434,9.9422613,135.59,135.5,3.02]
[1765208715614,3.29,135.58,135.5,3.02]
[1765208715813,6.6389,135.57,135.5,9.6619]
[1765208716014,66.07,135.58,135.5,3.02]
[1765208716218,5.31872679,135.6,135.54,3.02]
[1765208716427,5.31872679,135.64,135.56,3.02]
[1765208716616,3.29,135.65,135.56,106.2951]
[1765208716815,3.29,135.65,135.57,3.02]
[1765208717220,5.31872679,135.66,135.6,106.2668]
[1765208717424,12.11743385,135.7,135.62,106.2477]
[1765208717425,3.29,135.7,135.62,106.2477]
[1765208717626,0.0544789,135.64,135.63,3.02]
[1765208717825,3.29,135.7,135.62,0.04768377]
[1765208717826,106.4931,135.66,135.62,0.04768377]
[1765208718136,3.33807187,135.65,135.63,0.05585975]
[1765208719416,0.04807187,135.65,135.63,0.05585975]
[1765208720521,3.22807187,135.65,135.63,0.05585975]
[1765208720925,3.18,135.63,135.53,106.4358]
[1765208721116,3.18,135.63,135.54,3.14]
[1765208721924,0.05226788,135.6,135.57,0.05165611]
[1765208722330,0.05226788,135.6,135.57,3.19165611]
[1765208723743,0.05226788,135.6,135.57,0.05165611]
[1765208726224,3.23226788,135.6,135.57,0.05165611]
[1765208726833,0.05226788,135.6,135.57,3.19165611]
[1765208728134,0.05226788,135.6,135.57,9.83015611]
[1765208728535,3.23226788,135.6,135.57,0.05165611]
[1765208728832,3.18,135.58,135.57,0.05165611]
[1765208730626,3.18,135.58,135.48,103.3363]
[1765208730627,3.18,135.57,135.48,106.4763]
[1765208730828,3.18,135.57,135.48,3.14]
[1765208731233,9.8197,135.55,135.48,9.7828]
[1765208731539,0.04831008,135.53,135.5,0.05650665]
[1765208731738,3.22831008,135.53,135.5,0.05650665]
[1765208732141,65.96831008,135.53,135.5,0.05650665]
[1765208732846,3.18,135.52,135.5,0.05650665]
[1765208733435,3.18,135.5,135.41,3.14]
[1765208733631,3.18,135.49,135.41,3.14]
[1765208733838,62.74,135.48,135.43,3.14]
[1765208734042,62.74,135.48,135.44,3.14]
[1765208734242,65.92,135.48,135.42,103.3787]
[1765208734443,65.92,135.48,135.42,106.5187]
[1765208734641,0.04953225,135.46,135.44,3.18803899]
[1765208735041,0.04953225,135.46,135.44,9.83283899]
[1765208735545,0.04953225,135.46,135.45,3.14]
[1765208735745,65.92,135.52,135.46,6.6437]
[1765208735946,65.92,135.52,135.47,3.14]
[1765208735947,62.74,135.52,135.47,3.14]
[1765208736542,65.92,135.52,135.48,6.6428]
[1765208736744,3.23608455,135.51,135.49,0.05438173]
[1765208737148,3.18,135.5,135.49,0.05438173]
[1765208737639,0.05608455,135.51,135.49,3.19438173]
[1765208737839,0.05608455,135.51,135.5,3.14]
[1765208738152,62.76,135.57,135.5,3.14]
[1765208738537,6.6394,135.56,135.5,3.14]
[1765208738745,3.18,135.55,135.49,6.6426]
[1765208738940,3.18,135.55,135.46,7.59694428]
[1765208739145,0.05270271,135.52,135.49,0.05458079]
[1765208739935,0.05270271,135.52,135.49,9.83708079]
[1765208740547,0.05270271,135.52,135.5,9.7819]
[1765208740747,0.05270271,135.52,135.51,3.14]
[1765208741055,3.18,135.59,135.52,3.14]
[1765208741441,62.76,135.6,135.53,3.14]
[1765208741751,65.94,135.6,135.53,3.14]
[1765208742050,0.05000789,135.58,135.55,0.0476551]
[1765208742749,3.23000789,135.58,135.55,6.6871551]
[1765208742947,3.23000789,135.58,135.55,0.0476551]
[1765208744551,0.05000789,135.58,135.55,3.1876551]
[1765208745066,0.05000789,135.58,135.57,3.14]
[1765208746241,0.05000789,135.58,135.55,0.0476551]
[1765208746756,3.23000789,135.58,135.55,0.0476551]
[1765208748247,0.05000789,135.58,135.55,0.0476551]
[1765208748449,6.68850789,135.58,135.55,0.0476551]
[1765208748644,3.09,135.57,135.55,0.0476551]
[1765208749758,0.05000789,135.58,135.55,0.0476551]
[1765208749954,3.14000789,135.58,135.55,0.0476551]
[1765208750460,3.09,135.56,135.55,0.0476551]
[1765208750650,3.09,135.56,135.5,6.6418]
[1765208751162,3.09,135.53,135.49,3.21]
[1765208751356,3.09,135.53,135.48,9.8529]
[1765208751550,0.05033272,135.52,135.49,6.69255238]
[1765208751757,0.05033272,135.52,135.5,3.21]
[1765208752053,0.05033272,135.52,135.5,9.852]
[1765208752253,0.05033272,135.52,135.51,3.21]
[1765208753758,71.11027645,135.6,135.54,3.21]
[1765208753957,14.96746962,135.64,135.56,3.21]
[1765208754354,9.68719317,135.64,135.56,3.21]
[1765208754562,3.09,135.62,135.56,3.21]
[1765208754865,0.05104288,135.6,135.58,0.05292761]
[1765208755158,3.14104288,135.6,135.58,0.05292761]
[1765208756660,3.14104288,135.6,135.52,106.5117]
[1765208756661,3.09,135.59,135.52,3.21]
[1765208756861,3.09,135.56,135.51,6.6413]
[1765208757160,3.09,135.55,135.46,3.21]
[1765208757367,3.09,135.53,135.46,3.21]
[1765208757756,0.05482774,135.51,135.48,6.69392818]
[1765208757958,3.14482774,135.51,135.48,6.69392818]
[1765208758665,3.14482774,135.51,135.48,0.05102818]
[1765208759864,0.05482774,135.51,135.48,3.04102818]
[1765208760470,3.06482774,135.51,135.48,0.05102818]
[1765208760659,0.05482774,135.51,135.48,3.04102818]
[1765208760867,75.88746962,135.59,135.51,106.3027]
[1765208761063,16.66817547,135.61,135.55,2.99]
[1765208761258,14.88746962,135.62,135.55,2.99]
[1765208761573,3.01,135.62,135.55,2.99]
[1765208761769,3.01,135.6,135.52,103.3078]
[1765208762068,0.05044511,135.57,135.55,0.05178493]
[1765208762263,3.06044511,135.57,135.55,0.05178493]
[1765208762868,0.05044511,135.57,135.55,0.05178493]
[1765208763062,0.05044511,135.57,135.55,6.69138493]
[1765208763272,0.05044511,135.57,135.55,9.68138493]
[1765208763768,0.05044511,135.57,135.56,2.99]
[1765208763971,0.05044511,135.57,135.55,6.69138493]
[1765208764273,0.05044511,135.57,135.55,9.68138493]
[1765208765670,0.05044511,135.57,135.56,2.99]
[1765208766068,3.01,135.61,135.56,2.99]
[1765208766273,62.74,135.62,135.56,2.99]
[1765208766472,62.74,135.62,135.57,103.2685]
[1765208766675,5.28027645,135.66,135.62,6.6361]
[1765208766974,3.01,135.66,135.59,2.99]
[1765208767162,0.04849504,135.64,135.61,0.04927718]
[1765208767367,0.04849504,135.64,135.61,3.03927718]
[1765208768171,0.04849504,135.64,135.62,2.99]
[1765208768374,0.04849504,135.64,135.62,9.626]
[1765208768575,0.04849504,135.64,135.63,2.99]
[1765208769080,65.75,135.7,135.65,9.6248]
[1765208769475,72.3825,135.7,135.65,2.99]
[1765208769676,62.74,135.7,135.65,2.99]
[1765208769974,0.05310867,135.69,135.66,0.04721564]
[1765208770168,0.05310867,135.69,135.66,3.03721564]
[1765208770366,0.05310867,135.69,135.66,106.23461564]
[1765208770572,0.05310867,135.69,135.66,0.04721564]
[1765208770763,3.06310867,135.69,135.66,0.04721564]
[1765208770968,0.05310867,135.69,135.66,0.04721564]
[1765208771572,3.06310867,135.69,135.66,0.04721564]
[1765208771774,3.06310867,135.69,135.59,106.2422]
[1765208771974,3.01,135.67,135.59,2.99]
[1765208772177,3.01,135.67,135.57,165.9887]
[1765208772178,3.01,135.64,135.57,6.6385]
[1765208772382,3.01,135.67,135.59,2.99]
[1765208772574,9.644,135.67,135.6,6.637]
[1765208772781,3.01,135.66,135.6,6.637]
[1765208772979,0.04865654,135.64,135.62,0.04886388]
[1765208773182,3.05865654,135.64,135.62,0.04886388]
[1765208773474,3.01,135.63,135.55,106.2714]
[1765208773683,3.01,135.63,135.57,2.99]
[1765208774176,7.46694428,135.67,135.59,9.6275]
[1765208774376,3.01,135.67,135.59,2.99]
[1765208774579,0.04983254,135.64,135.62,0.05285548]
[1765208775078,3.05983254,135.64,135.62,0.05285548]
[1765208775886,3.05983254,135.64,135.55,2.99]
[1765208776174,3.01,135.61,135.54,6.6399]
[1765208776988,3.06335385,135.59,135.56,0.05535685]
[1765208778078,6.6382,135.58,135.56,0.05535685]
[1765208778286,3.02,135.57,135.56,0.05535685]
[1765208778781,9.6593,135.56,135.49,9.6322]
[1765208778980,9.6593,135.56,135.49,2.99]
[1765208779384,10.0739633,135.6,135.52,3.25]
[1765208779385,3.02,135.6,135.52,3.25]
[1765208779790,0.04807739,135.57,135.55,0.04828589]
[1765208779976,3.06807739,135.57,135.55,0.04828589]
[1765208780487,0.04807739,135.57,135.55,0.04828589]
[1765208782786,0.04807739,135.57,135.55,3.29828589]
[1765208783477,62.72,135.62,135.56,3.25]
[1765208783676,62.72,135.62,135.57,3.25]
[1765208784485,0.05435334,135.61,135.58,0.05439063]
[1765208784789,0.05435334,135.61,135.58,3.30439063]
[1765208784979,0.05435334,135.61,135.59,3.25]
[1765208785988,0.05435334,135.61,135.59,6.6375]
[1765208787189,3.07435334,135.61,135.58,0.05439063]
[1765208789085,3.02,135.59,135.58,0.05439063]
[1765208789789,3.02,135.57,135.53,9.8904]
[1765208789986,6.6383,135.58,135.53,9.8904]
[1765208790288,6.6383,135.58,135.42,13.55136883]
[1765208790289,3.02,135.54,135.44,103.3652]
[1765208790489,10.09709195,135.57,135.49,3.25]
[1765208790682,0.05623134,135.54,135.53,3.25]
[1765208790887,0.05587207,135.55,135.52,0.05413377]
[1765208791282,0.05587207,135.55,135.54,3.25]
[1765208791682,0.05587207,135.55,135.53,9.8905]
[1765208791989,0.05587207,135.55,135.52,0.05413377]
[1765208792388,0.05587207,135.55,135.52,6.69503377]
[1765208792594,0.05587207,135.55,135.52,9.94503377]
[1765208792788,0.05587207,135.55,135.52,3.30413377]
[1765208793582,3.07587207,135.55,135.52,0.05413377]
[1765208794987,3.02,135.53,135.52,0.05413377]
[1765208796190,3.02,135.53,135.45,9.8942]
[1765208797299,0.05509524,135.5,135.48,3.30413895]
[1765208797593,0.05509524,135.5,135.48,0.05413895]
[1765208797797,3.07509524,135.5,135.48,0.05413895]
[1765208798197,0.05509524,135.5,135.48,0.05413895]
[1765208799486,0.05509524,135.5,135.48,9.94703895]
[1765208799690,0.05509524,135.5,135.49,3.25]
[1765208800187,62.74,135.56,135.51,3.25]
[1765208800699,6.6381,135.59,135.51,106.5627]
[1765208801095,0.05577184,135.56,135.54,0.05029593]
[1765208804903,3.07577184,135.56,135.54,0.05029593]
[1765208805603,0.05577184,135.56,135.54,0.05029593]
[1765208805805,3.07577184,135.56,135.54,0.05029593]
[1765208806500,0.05577184,135.56,135.54,3.30029593]
[1765208806701,0.05577184,135.56,135.54,9.94039593]
[1765208807903,0.05577184,135.56,135.55,3.25]
[1765208808404,62.74,135.6,135.58,3.06]
[1765208808902,62.74,135.65,135.58,3.06]
[1765208809710,3.06430027,135.63,135.6,0.05169064]
[1765208810106,3.06430027,135.63,135.53,3.06]
[1765208810305,3.01,135.61,135.53,3.06]
[1765208810799,6.6379,135.59,135.53,9.7005]
[1765208811204,0.05518773,135.57,135.55,0.05507314]
[1765208811609,3.06518773,135.57,135.55,0.05507314]
[1765208812608,9.70408773,135.57,135.55,0.05507314]
[1765208813511,9.6501,135.55,135.46,106.4095]
[1765208813718,72.3901,135.55,135.47,3.06]